bitfinex/quotes_BTCUSD_20241009
["timestamp","ask_amount","ask_price","bid_price","bid_amount"]
[1728437967390,0.32232076,62506.0,62500.0,0.159998]
[1728437967391,0.007,62502.0,62500.0,0.159998]
[1728437967620,0.004,62499.0,62496.0,0.24125064]
[1728437967864,0.004,62499.0,62496.0,0.40125964]
[1728437968095,0.00235076,62498.0,62496.0,0.160009]
[1728437968329,0.00235076,62498.0,62494.0,0.160012]
[1728437968561,0.00235076,62498.0,62493.0,0.320035]
[1728437968794,0.00235076,62498.0,62496.0,0.160008]
[1728437970229,0.18306922,62497.0,62487.0,0.320065]
[1728437970478,0.32002,62496.0,62487.0,0.320065]
[1728437970720,0.160015,62494.0,62490.0,0.160025]
[1728437971186,0.320022,62496.0,62491.0,0.160022]
[1728437971436,0.50311722,62491.0,62485.0,0.001642]
[1728437971670,0.18306922,62491.0,62488.0,0.002]
[1728437971913,0.18306922,62491.0,62488.0,0.001]
[1728437972163,0.160028,62489.0,62488.0,0.001]
[1728437973135,0.160035,62486.0,62485.0,0.001642]
[1728437973367,0.49851766,62486.0,62485.0,0.001642]
[1728437973599,0.67571766,62486.0,62485.0,0.001642]
[1728437974524,0.67771766,62486.0,62485.0,0.001642]
[1728437974772,0.67571766,62486.0,62485.0,0.001642]
[1728437974997,0.67971766,62486.0,62485.0,0.001642]
[1728437975739,0.1812,62486.0,62485.0,0.001642]
[1728437975975,0.004,62486.0,62485.0,0.16168]
[1728437976741,0.008,62486.0,62485.0,0.16168]
[1728437976961,0.160032,62488.0,62485.0,0.001642]
[1728437977187,0.160034,62487.0,62485.0,0.005642]
[1728437977874,0.160034,62487.0,62485.0,0.009642]
[1728437978111,0.320055,62490.0,62485.0,0.009642]
[1728437978112,0.160035,62486.0,62485.0,0.001642]
[1728437978338,0.160035,62486.0,62485.0,0.008642]
[1728437979021,0.160031,62488.0,62485.0,0.008642]
[1728437979239,0.160024,62491.0,62485.0,0.008642]
[1728437979462,0.160029,62489.0,62485.0,0.008642]
[1728437979726,0.160029,62489.0,62485.0,0.005642]
[1728437979972,0.320033,62494.0,62486.0,0.320069]
[1728437980204,0.320042,62492.0,62485.0,0.005642]
[1728437980425,0.160033,62487.0,62485.0,0.006642]
[1728437980672,0.160028,62489.0,62485.0,0.16168]
[1728437980966,0.160033,62488.0,62485.0,0.004642]
[1728437981195,0.18306922,62494.0,62485.0,0.007642]
[1728437981423,0.160035,62486.0,62485.0,0.004642]
[1728437981643,0.160035,62486.0,62485.0,0.006642]
[1728437981871,0.320055,62490.0,62485.0,0.006642]
[1728437982099,0.320058,62489.0,62485.0,0.006642]
[1728437982331,0.160035,62486.0,62485.0,0.006642]
[1728437982818,0.160035,62486.0,62485.0,0.011642]
[1728437983066,0.160035,62486.0,62485.0,0.006642]
[1728437983980,0.160035,62486.0,62485.0,0.001642]
[1728437984205,0.001,62486.0,62485.0,0.010642]
[1728437984455,0.001,62486.0,62485.0,0.007642]
[1728437984977,0.001,62486.0,62485.0,0.54924922]
[1728437984978,0.002,62486.0,62485.0,0.54924922]
[1728437985209,0.002,62486.0,62485.0,0.36618]
[1728437985447,0.002,62486.0,62485.0,0.44638]
[1728437990573,0.002,62486.0,62485.0,0.27368]
[1728437991047,0.002,62486.0,62485.0,0.013642]
[1728437991520,0.002,62486.0,62485.0,0.113642]
[1728437991983,0.162035,62486.0,62485.0,0.113642]
[1728437992228,0.002,62486.0,62485.0,0.113642]
[1728437992469,0.002,62486.0,62485.0,0.013642]
[1728437992710,0.162035,62486.0,62485.0,0.013642]
[1728437993416,0.002,62486.0,62485.0,0.013642]
[1728437993874,0.162035,62486.0,62485.0,0.013642]
[1728437994568,0.002,62486.0,62485.0,0.17368]
[1728437994793,0.002,62486.0,62485.0,0.013642]
[1728437996477,0.002,62486.0,62485.0,0.17368]
[1728437996704,0.002,62486.0,62485.0,0.013642]
[1728437997346,0.002821,62486.0,62485.0,0.17368]
[1728437998009,0.002821,62486.0,62485.0,0.013642]
[1728437998237,0.002821,62486.0,62485.0,0.17368]
[1728437998478,0.002821,62486.0,62485.0,0.013642]
[1728437998915,0.34592522,62486.0,62485.0,0.013642]
[1728438000358,0.44087598,62486.0,62485.0,0.013642]
[1728438000835,0.67858942,62486.0,62485.0,0.013642]
[1728438001078,0.67658942,62486.0,62485.0,0.001642]
[1728438001531,0.67658942,62486.0,62485.0,0.006642]
[1728438002470,0.67658942,62486.0,62485.0,0.001642]
[1728438002672,0.67658942,62486.0,62485.0,0.006642]
[1728438003170,0.67658942,62486.0,62485.0,0.001642]
[1728438003447,0.67758942,62486.0,62485.0,0.001642]
[1728438003921,0.67758942,62486.0,62485.0,0.004642]
[1728438004136,0.67758942,62486.0,62485.0,0.001642]
[1728438004357,0.67858942,62486.0,62485.0,0.001642]
[1728438004795,0.50368942,62486.0,62485.0,0.001642]
[1728438011779,0.002821,62486.0,62485.0,0.001642]
[1728438012018,0.002821,62486.0,62485.0,0.16168]
[1728438012233,0.002821,62486.0,62485.0,0.50016266]
[1728438012469,0.002821,62486.0,62485.0,0.31709344]
[1728438012945,0.001821,62486.0,62485.0,0.31709344]
[1728438013179,0.001821,62486.0,62485.0,0.32609344]
[1728438013395,0.000821,62486.0,62485.0,0.32609344]
[1728438013616,0.000821,62486.0,62485.0,0.33509344]
[1728438013844,0.000821,62486.0,62485.0,0.31626019]
[1728438014067,0.004821,62486.0,62485.0,0.31726019]
[1728438014297,0.004821,62486.0,62485.0,0.31826019]
[1728438014298,0.009821,62486.0,62485.0,0.31826019]
[1728438017259,0.009821,62486.0,62485.0,0.41826019]
[1728438018623,0.009821,62486.0,62485.0,0.60132941]
[1728438019062,0.009821,62486.0,62485.0,0.41826019]
[1728438023032,0.009821,62486.0,62485.0,0.26284675]
[1728438023769,0.169856,62486.0,62485.0,0.00280875]
[1728438023996,0.009821,62486.0,62485.0,0.00280875]
[1728438024426,0.009821,62486.0,62485.0,0.16284675]
[1728438024641,0.009821,62486.0,62485.0,0.00280875]
[1728438025907,0.169856,62486.0,62485.0,0.00280875]
[1728438029194,0.40216944,62486.0,62485.0,0.00280875]
[1728438029431,0.49846944,62486.0,62485.0,0.00280875]
[1728438030086,0.48946944,62486.0,62485.0,0.00080875]
[1728438030309,0.48946944,62486.0,62485.0,0.00280875]
[1728438031750,0.48946944,62486.0,62485.0,0.00180875]
[1728438032194,0.49606472,62486.0,62485.0,0.00280875]
[1728438034693,0.49606472,62486.0,62485.0,0.00180875]
[1728438034835,0.49706472,62486.0,62485.0,0.00180875]
[1728438035287,0.49706472,62486.0,62485.0,0.00080875]
[1728438036090,0.49806472,62486.0,62485.0,0.00080875]
[1728438036320,0.49706472,62486.0,62485.0,0.00080875]
[1728438036793,0.49806472,62486.0,62485.0,0.00080875]
[1728438043846,0.16945128,62486.0,62485.0,0.00080875]
[1728438047624,0.00941628,62486.0,62485.0,0.16084675]
[1728438048069,0.002821,62486.0,62485.0,0.16084675]
[1728438049023,0.00882023,62486.0,62485.0,0.16084675]
[1728438049250,0.002821,62486.0,62485.0,0.16084675]
[1728438049475,0.00881531,62486.0,62485.0,0.16084675]
[1728438049722,0.002821,62486.0,62485.0,0.16084675]
[1728438049944,0.00882023,62486.0,62485.0,0.16084675]
[1728438050216,0.00881531,62486.0,62485.0,0.16084675]
[1728438050746,0.002821,62486.0,62485.0,0.62301597]
[1728438050977,0.002821,62486.0,62485.0,0.43994675]
[1728438051212,0.001821,62486.0,62485.0,0.43994675]
[1728438051680,0.001821,62486.0,62485.0,0.43894675]
[1728438052166,0.001821,62486.0,62485.0,0.77842941]
[1728438052400,0.003821,62486.0,62485.0,0.77842941]
[1728438052640,0.003821,62486.0,62485.0,0.78342941]
[1728438052868,0.000821,62486.0,62485.0,0.77842941]
[1728438053116,0.000821,62486.0,62485.0,0.8495231]
[1728438053343,0.000821,62486.0,62485.0,0.77942941]
[1728438053589,0.000821,62486.0,62485.0,0.77842941]
[1728438053837,0.000821,62486.0,62485.0,0.78142941]
[1728438054568,0.000821,62486.0,62485.0,0.78242941]
[1728438055035,0.000821,62486.0,62485.0,0.77942941]
[1728438055273,0.000821,62486.0,62485.0,0.78442941]
[1728438055499,0.000821,62486.0,62485.0,0.80642941]
[1728438055751,0.000821,62486.0,62485.0,0.80842941]
[1728438056007,0.000821,62486.0,62485.0,0.80642941]
[1728438056481,0.000821,62486.0,62485.0,0.80942941]
[1728438057431,1e-06,62486.0,62485.0,0.80942941]
[1728438062092,1e-06,62486.0,62485.0,0.95154659]
[1728438062361,1e-06,62486.0,62485.0,0.80942941]
[1728438062595,1e-06,62486.0,62485.0,0.95116877]
[1728438063054,1e-06,62486.0,62485.0,0.84150941]
[1728438063289,1e-06,62486.0,62485.0,0.83850941]
[1728438063532,1e-06,62486.0,62485.0,0.98015012]
[1728438063769,1e-06,62486.0,62485.0,0.63536019]
[1728438064001,1e-06,62486.0,62485.0,0.93349267]
[1728438064262,0.001001,62486.0,62485.0,0.92088571]
[1728438064488,0.001001,62486.0,62485.0,0.91888571]
[1728438064741,1e-06,62486.0,62485.0,0.88488571]
[1728438064999,0.24125064,62497.0,62491.0,0.005]
[1728438065239,0.24125064,62497.0,62496.0,0.26001]
[1728438065472,0.000822,62498.0,62497.0,0.260007]
[1728438066125,0.00072718,62498.0,62497.0,0.260007]
[1728438066874,0.00072718,62498.0,62491.0,0.005]
[1728438066875,0.00072718,62498.0,62494.0,0.160013]
[1728438067120,0.1837964,62498.0,62495.0,0.160011]
[1728438067357,0.00072718,62498.0,62492.0,0.320038]
[1728438067596,0.00072718,62498.0,62496.0,0.160008]
[1728438067849,0.00072718,62498.0,62494.0,0.160015]
[1728438068070,0.00072718,62498.0,62491.0,0.320044]
[1728438068293,0.00972718,62498.0,62497.0,0.001]
[1728438068515,0.01772718,62498.0,62497.0,0.002]
[1728438069004,0.01772718,62498.0,62489.0,0.56130164]
[1728438069005,0.1792,62497.0,62493.0,0.1]
[1728438069476,0.339207,62497.0,62496.0,0.007]
[1728438069690,0.1792,62497.0,62495.0,0.1]
[1728438069914,0.16001,62496.0,62495.0,0.1]
[1728438070632,0.1792,62497.0,62495.0,0.1]
[1728438070859,0.1792,62497.0,62492.0,0.1]
[1728438071095,0.499218,62497.0,62489.0,0.34125064]
[1728438071327,0.1792,62497.0,62491.0,0.1]
[1728438071591,0.1792,62497.0,62496.0,0.16001]
[1728438071592,0.1812,62497.0,62496.0,0.16001]
[1728438071835,0.0806,62497.0,62496.0,0.16001]
[1728438072104,0.0826,62497.0,62496.0,0.16001]
[1728438072350,0.0836,62497.0,62496.0,0.16001]
[1728438072600,0.0806,62497.0,62496.0,0.16001]
[1728438073075,0.0826,62497.0,62496.0,0.17601]
[1728438073527,0.08813338,62497.0,62496.0,0.17601]
[1728438074639,0.08813338,62497.0,62496.0,0.016]
[1728438078535,0.08895438,62497.0,62496.0,0.016]
[1728438080134,0.08895438,62497.0,62496.0,0.17601]
[1728438085063,0.08895438,62497.0,62496.0,0.016]
[1728438086824,0.34646138,62497.0,62496.0,0.016]
[1728438087208,0.34881214,62497.0,62496.0,0.016]
[1728438087986,0.34781214,62497.0,62496.0,0.009]
[1728438088218,0.160013,62495.0,62489.0,0.50127764]
[1728438088459,0.160019,62493.0,62489.0,0.50127764]
[1728438088958,0.00660493,62492.0,62489.0,0.260027]
[1728438089447,0.00660493,62492.0,62486.0,0.320067]
[1728438089448,0.16662493,62492.0,62488.0,0.160028]
[1728438089684,0.00660493,62492.0,62489.0,0.1]
[1728438089924,0.16662593,62492.0,62489.0,0.105]
[1728438090134,0.160021,62492.0,62489.0,0.1]
[1728438090375,0.00659904,62491.0,62489.0,0.1]
[1728438090625,0.00659904,62491.0,62490.0,0.260025]
[1728438090860,0.160018,62493.0,62489.0,0.261669]
[1728438091090,0.160024,62491.0,62489.0,0.101642]
[1728438091338,0.00660493,62492.0,62489.0,0.106642]
[1728438091559,0.00659315,62490.0,62489.0,0.112642]
[1728438091821,0.160021,62492.0,62489.0,0.106642]
[1728438092069,0.00659315,62490.0,62489.0,0.006642]
[1728438092354,0.161018,62493.0,62489.0,0.27067]
[1728438092579,0.00659315,62490.0,62489.0,0.27467]
[1728438092799,0.001,62490.0,62489.0,0.27067]
[1728438093020,0.00759315,62490.0,62489.0,0.27567]
[1728438094263,0.00759315,62490.0,62489.0,0.27067]
[1728438094918,0.00859315,62490.0,62489.0,0.27767]
[1728438097124,0.00859315,62490.0,62489.0,0.017642]
[1728438097344,0.16861815,62490.0,62489.0,0.017642]
[1728438097613,0.35168737,62490.0,62489.0,0.017642]
[1728438097837,0.52638737,62490.0,62489.0,0.017642]
[1728438098509,0.68080081,62490.0,62489.0,0.008642]
[1728438098732,0.67980081,62490.0,62489.0,0.002642]
[1728438098945,0.67980081,62490.0,62489.0,0.001642]
[1728438099175,0.18129315,62490.0,62489.0,0.001642]
[1728438099428,0.00959315,62490.0,62489.0,0.16167]
[1728438099654,0.003,62490.0,62489.0,0.16167]
[1728438100112,0.160015,62494.0,62490.0,0.160023]
[1728438100819,0.0771,62495.0,62490.0,0.320049]
[1728438101048,0.237113,62495.0,62490.0,0.160023]
[1728438101278,0.160015,62494.0,62490.0,0.160023]
[1728438101879,0.160015,62494.0,62490.0,0.163023]
[1728438102083,0.160015,62494.0,62490.0,0.166023]
[1728438102290,0.160015,62494.0,62490.0,0.163023]
[1728438102776,0.160015,62494.0,62490.0,0.167023]
[1728438105974,0.160015,62494.0,62490.0,0.007]
[1728438106190,0.160015,62494.0,62490.0,0.167024]
[1728438107643,0.320031,62494.0,62490.0,0.007]
[1728438107832,0.16002,62492.0,62490.0,0.007]
[1728438108263,0.160018,62493.0,62490.0,0.007]
[1728438108931,0.16552715,62492.0,62489.0,0.001642]
[1728438109140,0.16552715,62492.0,62490.0,0.005]
[1728438109350,0.16652715,62492.0,62490.0,0.012]
[1728438109569,0.16652715,62492.0,62490.0,0.007]
[1728438110011,0.16552715,62492.0,62490.0,0.004]
[1728438111335,0.16552715,62492.0,62490.0,0.005]
[1728438111552,0.16552715,62492.0,62489.0,0.001642]
[1728438111770,0.00550615,62492.0,62490.0,0.005]
[1728438111982,0.00650615,62492.0,62490.0,0.012]
[1728438112214,0.001,62492.0,62490.0,0.012]
[1728438112436,0.00550183,62491.0,62490.0,0.007]
[1728438114408,0.00550183,62491.0,62489.0,0.161669]
[1728438114612,0.001,62491.0,62490.0,0.008]
[1728438114824,0.002,62491.0,62490.0,0.014]
[1728438115054,0.002,62491.0,62490.0,0.174025]
[1728438115276,0.001,62491.0,62490.0,0.168025]
[1728438115497,0.001,62491.0,62490.0,0.008]
[1728438115713,0.002,62491.0,62490.0,0.008]
[1728438116140,0.001,62491.0,62490.0,0.008]
[1728438116632,0.002,62491.0,62490.0,0.014]
[1728438117758,0.002,62491.0,62490.0,0.174025]
[1728438118990,0.002,62491.0,62490.0,0.44174883]
[1728438119186,0.002,62491.0,62490.0,0.39423978]
[1728438119403,0.002,62491.0,62490.0,0.46550336]
[1728438120509,0.002,62491.0,62490.0,0.34528858]
[1728438124284,0.002,62491.0,62490.0,0.46550336]
[1728438125446,0.002,62491.0,62490.0,0.34693058]
[1728438128167,0.002,62491.0,62490.0,0.6225588]
[1728438128399,0.002,62491.0,62490.0,0.73079522]
[1728438129093,0.001,62491.0,62490.0,0.72479522]
[1728438130065,0.000821,62497.0,62492.0,0.005]
[1728438130301,0.000821,62497.0,62496.0,0.3312056]
[1728438130547,0.000821,62497.0,62496.0,0.48661904]
[1728438131231,0.000821,62497.0,62496.0,0.41542344]
[1728438131675,0.005821,62497.0,62496.0,0.41642344]
[1728438131903,0.000821,62497.0,62496.0,0.41542344]
[1728438132357,0.000821,62497.0,62496.0,0.30744909]
[1728438132588,0.001821,62497.0,62496.0,0.26001]
[1728438133087,0.000821,62497.0,62496.0,0.26001]
[1728438133789,0.000821,62497.0,62496.0,0.26501]
[1728438134012,0.000821,62497.0,62496.0,0.26001]
[1728438134461,0.006821,62497.0,62496.0,0.26101]
[1728438135139,0.010821,62497.0,62496.0,0.26101]
[1728438135616,0.006821,62497.0,62496.0,0.26101]
[1728438136060,0.012821,62497.0,62496.0,0.26101]
[1728438136510,0.012821,62497.0,62496.0,0.41642344]
[1728438139167,0.012821,62497.0,62496.0,0.53663822]
[1728438139995,0.012821,62497.0,62496.0,0.58401999]
[1728438142446,0.012821,62497.0,62496.0,0.82727063]
[1728438142656,0.012821,62497.0,62496.0,0.66881999]
[1728438142886,0.012821,62497.0,62496.0,0.62143822]
[1728438143113,0.00072718,62498.0,62497.0,0.007]
[1728438143317,0.00072718,62498.0,62497.0,0.62802044]
[1728438144576,0.00072718,62498.0,62497.0,0.63302044]
[1728438145675,0.00072718,62498.0,62497.0,0.63702044]
[1728438146102,0.00072718,62498.0,62497.0,0.60702044]
[1728438146307,0.00072718,62498.0,62497.0,0.60186303]
[1728438146740,0.00072718,62498.0,62497.0,0.51695042]
[1728438146969,0.00072718,62498.0,62497.0,0.58793216]
[1728438147179,0.00072718,62498.0,62497.0,0.51695042]
[1728438147388,0.00072718,62498.0,62497.0,0.51195042]
[1728438147584,0.00072718,62498.0,62497.0,0.5789273]
[1728438147831,0.00072718,62498.0,62497.0,0.5021273]
[1728438148027,0.00072718,62498.0,62497.0,0.5001273]
[1728438148549,0.00072718,62498.0,62497.0,0.4981273]
[1728438148745,0.00072718,62498.0,62497.0,0.5001273]
[1728438150435,0.00072718,62498.0,62497.0,0.46672419]
[1728438150651,0.00072718,62498.0,62497.0,0.41942044]
[1728438151168,0.00072718,62498.0,62497.0,0.41542044]
[1728438151414,0.00072718,62498.0,62497.0,0.41742044]
[1728438151670,0.00072718,62498.0,62497.0,0.41942044]
[1728438151923,0.00072718,62498.0,62497.0,0.41542044]
[1728438152381,0.00572718,62498.0,62497.0,0.160007]
[1728438152828,0.00981714,62498.0,62497.0,0.160007]
[1728438153820,0.00981714,62498.0,62497.0,0.260007]
[1728438154059,0.00881714,62498.0,62497.0,0.260007]
[1728438154281,0.00481714,62498.0,62497.0,0.264007]
[1728438154525,0.00581714,62498.0,62497.0,0.274007]
[1728438154773,0.00581714,62498.0,62497.0,0.270007]
[1728438155004,0.00581714,62498.0,62497.0,0.279007]
[1728438155996,0.00581714,62498.0,62497.0,0.52025764]
[1728438156223,0.00581714,62498.0,62497.0,0.43442044]
[1728438156475,0.00172718,62498.0,62497.0,0.43442044]
[1728438157166,0.00172718,62498.0,62497.0,0.43442044]
[1728438159297,0.00072718,62498.0,62497.0,0.47176708]
[1728438159517,0.00072718,62498.0,62497.0,0.47176075]
[1728438160214,0.00072718,62498.0,62497.0,0.46276075]
[1728438160456,0.00072718,62498.0,62497.0,0.46440275]
[1728438160694,0.00072718,62498.0,62497.0,0.47340275]
[1728438160982,0.00072718,62498.0,62497.0,0.47340682]
[1728438161197,0.00072718,62498.0,62497.0,0.60196244]
[1728438161412,0.00072718,62498.0,62497.0,0.62696244]
[1728438161632,0.00072718,62498.0,62497.0,0.62796244]
[1728438161873,0.00072718,62498.0,62497.0,0.76998337]
[1728438162571,0.00072718,62498.0,62497.0,0.76798337]
[1728438162796,0.00072718,62498.0,62497.0,0.76998337]
[1728438163240,0.00072718,62498.0,62497.0,0.76898337]
[1728438163505,0.00072718,62498.0,62497.0,0.76698337]
[1728438163727,0.00072718,62498.0,62497.0,0.76495409]
[1728438163940,0.00072718,62498.0,62497.0,0.77495409]
[1728438164159,0.00072718,62498.0,62497.0,0.78395409]
[1728438164390,0.00072718,62498.0,62497.0,0.51326244]
[1728438164839,0.00072718,62498.0,62497.0,0.50426244]
[1728438165057,0.00072718,62498.0,62497.0,0.52126244]
[1728438165508,0.00072718,62498.0,62497.0,0.51126244]
[1728438165993,0.00072718,62498.0,62497.0,0.51826244]
[1728438166325,0.00072718,62498.0,62497.0,0.51126244]
[1728438166553,0.00072718,62498.0,62497.0,0.42906244]
[1728438166779,0.00072718,62498.0,62497.0,0.43006244]
[1728438167178,0.00072718,62498.0,62497.0,0.42406244]
[1728438167412,0.00072718,62498.0,62497.0,0.41706244]
[1728438167648,0.00072718,62498.0,62497.0,0.42706244]
[1728438168121,0.00072718,62498.0,62497.0,0.42106244]
[1728438168357,0.00072718,62498.0,62497.0,0.42606244]
[1728438168609,0.00072718,62498.0,62497.0,0.42106244]
[1728438168809,0.00072718,62498.0,62497.0,0.42406244]
[1728438169192,0.00072718,62498.0,62497.0,0.44406244]
[1728438169606,0.00072718,62498.0,62497.0,0.44506244]
[1728438170046,0.00072718,62498.0,62497.0,0.44706244]
[1728438170464,0.00072718,62498.0,62497.0,0.45006244]
[1728438171016,0.00072718,62498.0,62497.0,0.45406244]
[1728438178558,0.00072718,62498.0,62497.0,0.42606244]
[1728438178842,0.17752718,62498.0,62497.0,0.21804612]
[1728438179070,0.17752718,62498.0,62497.0,0.010642]
[1728438179300,0.18161674,62498.0,62497.0,0.005642]
[1728438179751,0.18161674,62498.0,62497.0,0.165649]
[1728438180434,0.18161674,62498.0,62497.0,0.161649]
[1728438180658,0.18161674,62498.0,62497.0,0.002642]
[1728438180885,0.34162174,62498.0,62497.0,0.002642]
[1728438181105,0.34162174,62498.0,62497.0,0.004642]
[1728438181333,0.34162174,62498.0,62497.0,0.001642]
[1728438181552,0.34162174,62498.0,62497.0,0.004642]
[1728438181782,0.34162174,62498.0,62497.0,0.011642]
[1728438182005,0.34162174,62498.0,62497.0,0.001642]
[1728438182228,0.34162174,62498.0,62497.0,0.004642]
[1728438182951,0.18161674,62498.0,62497.0,0.004642]
[1728438183637,0.34162174,62498.0,62497.0,0.007642]
[1728438185068,0.34162174,62498.0,62497.0,0.001642]
[1728438185330,0.34162174,62498.0,62497.0,0.004642]
[1728438185564,0.34162174,62498.0,62497.0,0.007642]
[1728438186276,0.338523,62491.0,62490.0,0.001642]
[1728438186782,0.3425737,62491.0,62490.0,0.001642]
[1728438188137,0.3425737,62491.0,62490.0,0.002642]
[1728438188364,0.3425737,62491.0,62490.0,0.001642]
[1728438188603,0.49798714,62491.0,62490.0,0.001642]
[1728438189052,0.5023379,62491.0,62490.0,0.001642]
[1728438190190,0.5053379,62491.0,62490.0,0.001642]
[1728438190640,0.5023379,62491.0,62490.0,0.001642]
[1728438191142,0.5053379,62491.0,62490.0,0.001642]
[1728438191387,0.5063379,62491.0,62490.0,0.001642]
[1728438191614,0.5033379,62491.0,62490.0,0.001642]
[1728438191864,0.5063379,62491.0,62490.0,0.001642]
[1728438193861,0.5083379,62491.0,62490.0,0.001642]
[1728438194092,0.5063379,62491.0,62490.0,0.001642]
[1728438194303,0.5083379,62491.0,62490.0,0.001642]
[1728438195693,0.5133379,62491.0,62490.0,0.001642]
[1728438196125,0.368525,62490.0,62485.0,0.00080875]
[1728438196350,0.5262892,62490.0,62485.0,0.00080875]
[1728438196572,0.167035,62486.0,62485.0,0.00080875]
[1728438196780,0.68802575,62486.0,62485.0,0.00080875]
[1728438196984,0.84578995,62486.0,62485.0,0.00080875]
[1728438197418,1.02098158,62486.0,62485.0,0.00080875]
[1728438197660,1.02098158,62486.0,62481.0,0.001644]
[1728438197661,0.002,62482.0,62481.0,0.001644]
[1728438197869,0.70172473,62482.0,62481.0,0.001644]
[1728438198081,0.70571442,62482.0,62481.0,0.001644]
[1728438198877,0.54202129,62478.0,62477.0,0.001644]
[1728438199205,0.69743473,62478.0,62477.0,0.001644]
[1728438199413,0.70147106,62478.0,62477.0,0.001644]
[1728438199589,0.87438761,62478.0,62477.0,0.001644]
[1728438200207,0.87438761,62478.0,62477.0,0.002644]
[1728438200208,0.88338761,62478.0,62477.0,0.002644]
[1728438200767,0.89138761,62478.0,62477.0,0.003644]
[1728438202138,0.86838761,62478.0,62477.0,0.003644]
[1728438204898,0.86638761,62478.0,62477.0,0.003644]
[1728438205115,0.87445894,62478.0,62477.0,0.003644]
[1728438205559,0.87645894,62478.0,62477.0,0.003644]
[1728438206682,0.87445894,62478.0,62477.0,0.003644]
[1728438207316,0.87645894,62478.0,62477.0,0.003644]
[1728438207541,0.70154239,62478.0,62477.0,0.003644]
[1728438210998,0.69654239,62478.0,62477.0,0.003644]
[1728438211209,0.70154239,62478.0,62477.0,0.003644]
[1728438211642,0.70354239,62478.0,62477.0,0.003644]
[1728438212087,0.70154239,62478.0,62477.0,0.003644]
[1728438212950,0.69654239,62478.0,62477.0,0.003644]
[1728438213177,0.68854239,62478.0,62477.0,0.002644]
[1728438213401,0.67954239,62478.0,62477.0,0.001644]
[1728438213622,0.69154239,62478.0,62477.0,0.003644]
[1728438214956,0.68554239,62478.0,62477.0,0.002644]
[1728438215186,0.69054239,62478.0,62477.0,0.003644]
[1728438215421,0.69054239,62478.0,62477.0,0.002644]
[1728438215422,0.68454239,62478.0,62477.0,0.002644]
[1728438215631,0.67954239,62478.0,62477.0,0.001644]
[1728438215835,0.68354239,62478.0,62477.0,0.002644]
[1728438216038,0.68754239,62478.0,62477.0,0.002644]
[1728438216299,0.67547106,62478.0,62477.0,0.001644]
[1728438216742,0.67947106,62478.0,62477.0,0.001644]
[1728438218827,0.68147106,62478.0,62477.0,0.001644]
[1728438222136,0.67947106,62478.0,62477.0,0.001644]
[1728438222375,0.68147106,62478.0,62477.0,0.001644]
[1728438223043,0.68382182,62478.0,62477.0,0.001644]
[1728438223814,0.84423526,62478.0,62477.0,0.001644]
[1728438225024,0.84223526,62478.0,62477.0,0.001644]
[1728438225255,0.68447106,62478.0,62477.0,0.001644]
[1728438227663,0.68647106,62478.0,62477.0,0.001644]
[1728438228983,0.68447106,62478.0,62477.0,0.001644]
[1728438230200,0.68647106,62478.0,62477.0,0.001644]
[1728438230668,0.8418845,62478.0,62477.0,0.001644]
[1728438231568,0.68647106,62478.0,62477.0,0.001644]
[1728438231782,0.68882182,62478.0,62477.0,0.001644]
[1728438232907,0.68447106,62478.0,62477.0,0.001644]
[1728438234016,0.68647106,62478.0,62477.0,0.001644]
[1728438235183,0.68447106,62478.0,62477.0,0.001644]
[1728438237822,0.68647106,62478.0,62477.0,0.001644]
[1728438238750,0.68882182,62478.0,62477.0,0.001644]
[1728438239213,0.81182182,62478.0,62477.0,0.001644]
[1728438240166,0.80782182,62478.0,62477.0,0.001644]
[1728438240417,0.95154736,62478.0,62477.0,0.001644]
[1728438240630,0.80382182,62478.0,62477.0,0.001644]
[1728438240852,1.50382182,62478.0,62477.0,0.001644]
[1728438241083,1.50382182,62478.0,62477.0,0.002644]
[1728438241084,1.66923526,62478.0,62477.0,0.002644]
[1728438241309,1.66923526,62478.0,62477.0,0.001644]
[1728438241310,0.95923526,62478.0,62477.0,0.001644]
[1728438241555,1.1029608,62478.0,62477.0,0.001644]
[1728438241777,0.96923526,62478.0,62477.0,0.002644]
[1728438242012,1.1129608,62478.0,62477.0,0.002644]
[1728438242241,1.1129608,62478.0,62477.0,0.003644]
[1728438242242,0.97923526,62478.0,62477.0,0.003644]
[1728438242490,0.82382182,62478.0,62477.0,0.003644]
[1728438242744,0.78647106,62478.0,62477.0,0.002644]
[1728438242989,0.78443473,62478.0,62477.0,0.002644]
[1728438243231,0.79843473,62478.0,62477.0,0.003644]
[1728438245698,0.95384817,62478.0,62477.0,0.003644]
[1728438246164,0.82143473,62478.0,62477.0,0.003644]
[1728438247050,0.96548464,62478.0,62477.0,0.003644]
[1728438247731,0.82143473,62478.0,62477.0,0.003644]
[1728438248417,0.82143473,62478.0,62465.0,0.24125064]
[1728438248418,0.52204129,62470.0,62465.0,0.24125064]
[1728438248629,0.67745473,62470.0,62465.0,0.24125064]
[1728438249585,0.70045473,62470.0,62465.0,0.24125064]
[1728438249808,0.71745473,62470.0,62469.0,0.00565]
[1728438250256,0.86775671,62470.0,62469.0,0.00565]
[1728438250511,0.85975671,62470.0,62469.0,0.00465]
[1728438250770,0.70045473,62470.0,62469.0,0.00365]
[1728438251015,0.53855473,62470.0,62469.0,0.00465]
[1728438251241,0.53655473,62470.0,62469.0,0.00465]
[1728438252124,0.54855473,62470.0,62469.0,0.00565]
[1728438252337,0.55055473,62470.0,62469.0,0.00565]
[1728438252618,0.54855473,62470.0,62469.0,0.00565]
[1728438253961,0.70396817,62470.0,62469.0,0.00565]
[1728438255362,0.52555473,62470.0,62469.0,0.00565]
[1728438256304,0.52555473,62470.0,62469.0,0.00365]
[1728438256305,0.50355473,62470.0,62469.0,0.00365]
[1728438256803,0.52555473,62470.0,62469.0,0.00565]
[1728438257017,0.51455473,62470.0,62469.0,0.00465]
[1728438257267,0.50355473,62470.0,62469.0,0.00365]
[1728438258836,0.50955473,62470.0,62469.0,0.00365]
[1728438259554,0.51455473,62470.0,62469.0,0.00365]
[1728438261809,0.33148944,62470.0,62469.0,0.00365]